[Event "8th Svetozar Gligoric Cup 2022"]
[Site "Paracin"]
[Date "2022.06.01"]
[Round "2.12"]
[White "Vratonjic, Slobo"]
[Black "Rakic, Ognjan"]
[Result "1-0"]
[ECO "C11"]
[WhiteElo "2254"]
[BlackElo "1674"]
[Annotator "TA"]
[PlyCount "55"]
[EventDate "2022.05.31"]
[EventType "team-tourn"]
[EventCountry "SRB"]
[SourceTitle "playchess.com"]
[Source "ChessBase"]
[SourceQuality "1"]
[TimeControl "40/5400+30:900+30"]

{[%evp 16,55,14,7,19,9,22,25,33,13,21,16,21,18,20,18,135,152,134,127,224,227,233,223,353,322,1102,1101,1081,1052,1135,983,29987,29987,29990,12826,6523,449,6523,10512,5597,5593]} 1. e4 {[%emt 0:00:04]} e6 {[%emt 0:00:09]} 2. d4 {[%emt 0:00:07]} d5 {[%emt 0:00:48]} 3. Nc3 {[%emt 0:00:10]} Nf6 {[%emt 0:00:46]} 4. e5 {[%emt 0:00:06]} Nfd7 {[%emt 0:01:32]} 5. f4 {[%emt 0:00:12]} c5 {[%emt 0:01:39]} 6. Nf3 {[%emt 0:01:13]} Be7 {[%emt 0:00:52]} 7. Be3 {[%emt 0:00:37]} a6 {[%emt 0:00:38]} 8. Qd2 {[%emt 0:00:15]} Nc6 {[%emt 0:03:47]} 9. Be2 {[%emt 0:00:18]} cxd4 {[%emt 0:01:25] C11: French: Classical System: 4 e5 and 4 Bg5 dxe4.} 10. Nxd4 {[%emt 0:00:10]} Nxd4 {[%emt 0:00:24]} 11. Bxd4 {[%emt 0:00:07]} b5 {[%emt 0:01:38] White has an edge.} 12. Bd3 {[%emt 0:00:19]} Nc5 {[%emt 0:02:17] [#]} 13. Qe3 $146 {[%emt 0:04:43]} ({Predecessor:} 13. O-O Nxd3 14. cxd3 O-O 15. Qe3 f6 16. exf6 Bxf6 17. Ne2 Bd7 18. Rac1 Bxd4 19. Nxd4 {1-0 (63) Wittmann,K (2077)-Adelhuette,D (1997) Mittelfranken 2018}) 13... Nxd3+ {[%emt 0:01:27]} 14. cxd3 {[%emt 0:00:16]} Bd7 {[%emt 0:00:36]} 15. O-O {[%emt 0:01:59][%cal Of4f5]} g6 {[%emt 0:00:47] [#]} (15... O-O $11) 16. Nxd5 $1 $16 {[%emt 0:06:00][%mdl 512] White is more active.} exd5 {[%emt 0:12:58]} 17. e6 $1 {[%emt 0:00:08]} Bf6 {[%emt 0:01:42]} 18. exd7+ $18 {[%emt 0:02:35]} Kxd7 {[%emt 0:00:28]} 19. Qh3+ {[%emt 0:00:35]} Kd6 {[%emt 0:04:26]} (19... Kc7 {was worth a try.}) 20. Be5+ $1 {[%emt 0:00:59]} Bxe5 $2 {[%emt 0:02:48]} (20... Ke7 21. d4 Qb6) 21. fxe5+ {[%emt 0:00:07][%mdl 64] Discovered Attack} Ke7 {[%emt 0:01:24]} 22. Rf6 {[%emt 0:02:01] Threatening mate with Raf1.} h5 {[%emt 0:09:52]} 23. Raf1 {[%emt 0:00:36]} Rf8 {[%emt 0:00:40]} 24. Qf3 {[%emt 0:02:31]} Ke8 {[%emt 0:10:54] [#]} 25. Re6+ $3 {[%emt 0:02:16][%mdl 512]} fxe6 {[%emt 0:01:23] White is clearly winning.} 26. Qxf8+ {[%emt 0:00:08]} Kd7 {[%emt 0:00:32]} 27. Qd6+ {[%emt 0:00:09]} Kc8 {[%emt 0:38:08]} 28. Rf8 {[%emt 1:15:49] Weighted Error Value: White=0.03 (flawless) /Black=0.97} 1-0

[Event "8th Svetozar Gligoric Cup 2022"]
[Site "Paracin"]
[Date "2022.06.02"]
[Round "3.1"]
[White "Markus, Robert"]
[Black "Atalik, Suat"]
[Result "1-0"]
[ECO "E05"]
[WhiteElo "2613"]
[BlackElo "2459"]
[Annotator "TA"]
[PlyCount "85"]
[EventDate "2022.05.31"]
[EventType "team-tourn"]
[EventCountry "SRB"]
[SourceTitle "playchess.com"]
[Source "ChessBase"]
[SourceQuality "1"]
[TimeControl "40/5400+30:900+30"]

{[%evp 13,85,8,10,3,3,10,10,10,3,-3,4,0,0,0,54,60,57,49,56,61,76,65,128,121,127,112,147,107,134,129,129,116,121,123,124,138,140,84,97,37,41,44,25,0,144,145,133,141,152,156,161,148,150,163,158,157,150,145,240,266,244,222,332,325,343,327,543,540,573,544,604,562,862,731]} 1. d4 {[%emt 0:00:04]} Nf6 {[%emt 0:00:19]} 2. c4 {[%emt 0:00:12]} e6 {[%emt 0:00:23]} 3. Nf3 {[%emt 0:00:11]} d5 {[%emt 0:00:50]} 4. g3 {[%emt 0:00:11]} Be7 {[%emt 0:00:51]} 5. Bg2 {[%emt 0:00:09]} O-O {[%emt 0:00:14]} 6. O-O {[%emt 0:04:32]} dxc4 {[%emt 0:00:54]} 7. Qc2 {[%emt 0:00:09]} b5 {[%emt 0:00:54]} 8. a4 {[%emt 0:01:44] E05: Open Catalan: 5 Nf3 Be7.} b4 {[%emt 0:00:57]} 9. Nbd2 {[%emt 0:00:15]} Bb7 {[%emt 0:02:03]} 10. Nxc4 {[%emt 0:04:29] The position is equal.} Be4 {[%emt 0:01:58]} 11. Qd2 $5 {[%emt 0:02:08][%mdl 4] A promising side line.} c5 {[%emt 0:09:26]} 12. b3 {[%emt 0:00:50]} Nc6 {[%emt 0:04:19][%cal Rc6d4]} 13. Bb2 {[%emt 0:10:51] [#]} Na5 $146 {[%emt 0:10:40]} (13... Rc8 $11) ({Predecessor:} 13... Bd5 14. Qd3 Rc8 15. dxc5 Nd7 16. Rfd1 Nxc5 17. Qe3 Qc7 18. Rdc1 Qb7 19. Ne1 Qa6 20. Bxd5 exd5 {1-0 (34) Valdes Romero,L (2414)-Ernst,S (2554) Hoogeveen 2012}) 14. Nxa5 $14 {[%emt 0:07:02]} Qxa5 {[%emt 0:00:09]} 15. dxc5 {[%emt 0:03:35]} Rac8 {[%emt 0:03:38]} 16. Rac1 {[%emt 0:09:22]} Bd5 {[%emt 0:05:00]} 17. Ne5 {[%emt 0:04:22]} Bxg2 {[%emt 0:14:30]} (17... Bxc5 $14 18. Bxd5 exd5) 18. Kxg2 $16 {[%emt 0:00:26]} Bxc5 {[%emt 0:00:21]} 19. Qd3 {[%emt 0:11:39]} Rc7 {[%emt 0:10:28]} 20. Rc4 {[%emt 0:09:32]} Nd5 {[%emt 0:01:31]} 21. Rfc1 {[%emt 0:05:56] e4 is the strong threat.} ({Don't take} 21. Rh4 h6 $14) 21... f6 {[%emt 0:08:48]} 22. Nf3 {[%emt 0:04:57]} ({Don't play} 22. Rh4 h6 23. Ng4 f5 $14) 22... Rfc8 {[%emt 0:06:49]} 23. e4 {[%emt 0:07:23]} Nb6 {[%emt 0:01:55]} 24. R4c2 {[%emt 0:00:20] Threatens to win with Nd4.} Nd7 {[%emt 0:09:53] [#]} 25. e5 {[%emt 0:04:39]} ({White should play} 25. Nd4 $1 {[%cal Rd4e6]} Ne5 26. Qb5) 25... f5 {[%emt 0:00:18]} 26. Ng5 {[%emt 0:02:15]} (26. Qc4 $16 Nf8 27. Qb5) 26... Nf8 {[%emt 0:01:35]} 27. Qb5 {[%emt 0:01:43]} Qb6 {[%emt 0:00:59]} 28. f4 {[%emt 0:01:25]} a6 {[%emt 0:02:54] Black is now going downhill.} (28... Bg1 $1 $11 {remains equal.} 29. Qd3 Rxc2+ 30. Rxc2 Rxc2+ 31. Qxc2 h6) 29. Qxb6 {[%emt 0:00:29] White is more active.} Bxb6 {[%emt 0:00:01]} 30. Rxc7 {[%emt 0:00:10]} Rxc7 {[%emt 0:00:04]} 31. Rxc7 {[%emt 0:00:40]} Bxc7 {[%emt 0:00:01][%mdl 4096] Endgame KBN-KBN} 32. Kf2 {[%emt 0:00:39]} h6 {[%emt 0:00:25]} 33. Nf3 {[%emt 0:00:05]} Nd7 {[%emt 0:00:03]} 34. Bd4 {[%emt 0:01:51] Inhibits Nc5.} Kf7 {[%emt 0:00:15]} 35. Ke3 {[%emt 0:01:31]} Bd8 {[%emt 0:01:29]} (35... Ke7 $16 {keeps fighting.} 36. Kd2 g6) 36. Kd3 $18 {[%emt 0:00:32]} g5 {[%emt 0:00:22]} 37. Kc4 {[%emt 0:00:16]} gxf4 {[%emt 0:00:51]} (37... Nb8 $142 38. Bf2 (38. Kxb4 g4 $14) 38... gxf4) 38. gxf4 {[%emt 0:00:06]} Be7 {[%emt 0:00:51]} 39. Ne1 {[%emt 0:01:11]} Nb8 $2 {[%emt 0:01:23]} (39... Kg6 40. h3 Kh5) 40. Nd3 {[%emt 0:00:00] White is clearly winning.} Nc6 {[%emt 0:00:00][%cal Rc6a5] [#]} 41. Bc5 {[%emt 0:01:00]} Bh4 {[%emt 0:04:06]} 42. Bxb4 {[%emt 0:01:08]} Nxb4 {[%emt 0:01:05]} 43. Kxb4 {[%emt 0:01:53] Weighted Error Value: White=0.06 (flawless) /Black=0.26 (precise)} 1-0

[Event "8th Svetozar Gligoric Cup 2022"]
[Site "Paracin"]
[Date "2022.06.02"]
[Round "3.2"]
[White "Markovic, Miroslav"]
[Black "Kovacevic, Aleksandar"]
[Result "1/2-1/2"]
[ECO "B51"]
[WhiteElo "2271"]
[BlackElo "2503"]
[Annotator "TA"]
[PlyCount "46"]
[EventDate "2022.05.31"]
[EventType "team-tourn"]
[EventCountry "SRB"]
[SourceTitle "playchess.com"]
[Source "ChessBase"]
[SourceQuality "1"]
[TimeControl "40/5400+30:900+30"]

{[%evp 9,46,20,23,0,0,0,0,0,0,0,0,-10,-8,-40,-46,-43,-42,-40,-41,-74,-44,-44,-43,-48,-45,-49,-46,-49,-45,-43,-31,-60,-16,-47,-47,-50,-44,-47,-37]} 1. e4 {[%emt 0:03:10]} c5 {[%emt 0:00:14]} 2. Nf3 {[%emt 0:00:31]} d6 {[%emt 0:00:21]} 3. Bb5+ {[%emt 0:00:09]} Nd7 {[%emt 0:00:24]} 4. O-O {[%emt 0:00:10]} a6 {[%emt 0:00:20]} 5. Bd3 {[%emt 0:00:04]} Ngf6 {[%emt 0:00:16]} 6. c4 {[%emt 0:00:45] B51: Sicilian: Moscow Variation (3 Bb5+) without 3...Bd7.} Ne5 {[%emt 0:00:26]} 7. Nxe5 {[%emt 0:01:00]} dxe5 {[%emt 0:00:05] [#]} 8. Bc2 $146 {[%emt 0:00:09] The position is equal.} ({Predecessor:} 8. Qe2 e6 9. Nc3 Bd6 10. Bc2 O-O 11. d3 Nd7 12. f4 exf4 13. Bxf4 Bxf4 14. Rxf4 {0-1 (49) Neklyudov,T (1921)-Zhileykin,A (2193) Voronezh 2019}) 8... e6 {[%emt 0:01:19]} 9. d3 {[%emt 0:00:09]} Be7 {[%emt 0:01:05]} 10. Ba4+ {[%emt 0:01:12]} Bd7 {[%emt 0:00:53]} 11. Bxd7+ {[%emt 0:00:09]} Nxd7 {[%emt 0:02:02][%cal Bf6d7,Bd7b8,Bb8c6][%mdl 32]} 12. Nd2 $1 {[%emt 0:00:39]} Nb8 {[%emt 0:01:21]} 13. Nf3 {[%emt 0:00:26]} Nc6 {[%emt 0:00:16]} 14. b3 {[%emt 0:01:03]} O-O {[%emt 0:10:03]} 15. Bb2 {[%emt 0:00:07]} Qc7 {[%emt 0:00:51]} 16. Qe2 {[%emt 0:00:12]} Rfd8 {[%emt 0:01:52]} 17. Rfd1 {[%emt 0:01:08]} Rd7 {[%emt 0:20:28]} 18. h3 {[%emt 0:02:51]} Qb8 {[%emt 0:06:14]} 19. Bc3 {[%emt 0:00:29]} b5 {[%emt 0:01:54]} 20. Qb2 {[%emt 0:02:06][%cal Rf3e5]} Bf6 {[%emt 0:05:47]} 21. Qc2 {[%emt 0:00:34]} b4 {[%emt 0:01:26] Black is slightly better.} 22. Bb2 {[%emt 0:00:08]} a5 {[%emt 0:00:30]} 23. a4 {[%emt 0:00:23]} Raa7 {[%emt 0:43:53] Weighted Error Value: White=0.08 (flawless) /Black=0.07 (flawless)} 1/2-1/2

[Event "8th Svetozar Gligoric Cup 2022"]
[Site "Paracin"]
[Date "2022.06.02"]
[Round "3.3"]
[White "Brenjo, Slavisa"]
[Black "Saric, Sinisa"]
[Result "1-0"]
[ECO "B01"]
[WhiteElo "2402"]
[BlackElo "2411"]
[Annotator "TA"]
[PlyCount "41"]
[EventDate "2022.05.31"]
[EventType "team-tourn"]
[EventCountry "SRB"]
[SourceTitle "playchess.com"]
[Source "ChessBase"]
[SourceQuality "1"]
[TimeControl "40/5400+30:900+30"]

{[%evp 9,41,44,70,35,36,27,29,29,26,15,17,24,20,16,37,23,27,28,342,337,341,343,827,790,823,810,803,819,771,687,1651,1638,1227,1212]} 1. e4 d5 2. exd5 Qxd5 3. Nc3 Qd6 4. d4 {[%emt 0:01:34]} Nf6 {[%emt 0:01:39]} 5. Nf3 {[%emt 1:31:26]} Bg4 {[%emt 0:00:34]} 6. Be3 {[%emt 0:00:00] B01: Scandinavian Defence.} e6 {[%emt 1:31:17]} 7. h3 {[%emt 0:00:00]} Bh5 {[%emt 0:00:00]} 8. Be2 {[%emt 0:00:00] White has an edge.} c6 {[%emt 0:00:00]} 9. O-O {[%emt 0:00:00]} Nbd7 {[%emt 0:00:00]} 10. Re1 {[%emt 0:00:00]} Qc7 {[%emt 0:00:00] [#]} 11. Ne5 $146 {[%emt 0:00:00]} ({Predecessor:} 11. a3 Bd6 12. b4 b5 13. Rb1 a5 14. Nd2 Bxe2 15. Qxe2 O-O 16. Nce4 axb4 17. axb4 {½-½ (45) Ratnapriya,K (1488)-Vishwa,V (1758) New Delhi 2018}) 11... Nxe5 {[%emt 0:00:00]} 12. Bxh5 {[%emt 0:00:00] Strongly threatening Bf4.} Nc4 {[%emt 0:00:00]} 13. Bg5 {[%emt 0:00:00]} Nxb2 $2 {[%emt 0:00:00][%mdl 8192] [#] This move loses the game for Black.} (13... O-O-O $1 $11 {and Black stays safe.}) 14. Rxe6+ $1 $18 {[%emt 0:00:00]} Kd8 {[%emt 0:00:00]} 15. Rxf6 {[%emt 0:00:00]} gxf6 {[%emt 0:00:00]} (15... Nxd1 16. Rxf7+ Be7) 16. Bxf6+ {[%emt 0:00:00] White is clearly winning.} Be7 {[%emt 0:00:00]} 17. Qf3 {[%emt 0:00:00]} Re8 {[%emt 0:00:00]} 18. Re1 {[%emt 0:00:00]} Qd6 {[%emt 0:00:01]} 19. Bxf7 {[%emt 0:00:00] This bishop pair is nice.} Rf8 {[%emt 0:05:13]} 20. Rxe7 {[%emt 0:00:00]} Qxe7 {[%emt 0:00:08]} 21. Nd5 {[%emt 0:00:00][%mdl 64] Pin.  Weighted Error Value: White=0.13 (very precise) /Black=0.58} 1-0

[Event "8th Svetozar Gligoric Cup 2022"]
[Site "Paracin"]
[Date "2022.06.02"]
[Round "3.4"]
[White "Vratonjic, Slobo"]
[Black "Omorjan, Dejan"]
[Result "1/2-1/2"]
[ECO "B50"]
[WhiteElo "2254"]
[BlackElo "2339"]
[Annotator "TA"]
[PlyCount "83"]
[EventDate "2022.05.31"]
[EventType "team-tourn"]
[EventCountry "SRB"]
[SourceTitle "playchess.com"]
[Source "ChessBase"]
[SourceQuality "1"]
[TimeControl "40/5400+30:900+30"]

{[%evp 9,83,36,35,39,35,4,35,18,18,17,26,0,8,23,28,20,25,22,27,35,40,5,7,0,23,13,0,6,25,16,16,21,32,20,18,11,31,0,1,0,4,0,21,27,53,0,0,0,0,0,0,0,0,0,0,0,0,0,0,0,0,0,11,-15,0,0,0,0,0,0,0,0,0,0,0,0]} 1. e4 {[%emt 0:03:50]} c5 {[%emt 0:00:03]} 2. Nf3 {[%emt 0:00:09]} d6 {[%emt 0:00:03]} 3. Bc4 {[%emt 0:00:06]} Nf6 {[%emt 0:00:23]} 4. d3 {[%emt 0:00:07]} g6 {[%emt 0:01:38]} 5. e5 {[%emt 0:05:35]} dxe5 {[%emt 0:02:30]} 6. Nxe5 {[%emt 0:00:17][%csl Ge5][%cal Rc4f7] [#] B50: Sicilian: 2...d6, Miscellaneous.} e6 $1 {[%emt 0:00:45]} 7. Bg5 {[%emt 0:04:59]} a6 {[%emt 0:03:46] Prevents Bb5+.} 8. Nc3 {[%emt 0:04:02] [#] White is slightly better.} h6 $146 {[%emt 0:01:36]} ({Predecessor:} 8... Be7 9. Bh6 Qc7 10. Qe2 Nc6 11. Nf3 Bd7 12. a3 O-O-O 13. h3 Nh5 14. Bd2 Nf4 15. Bxf4 Qxf4 {0-1 (37) Romero Funieles,R (1654)-Asensio Linan,T (1998) Barcelona 2020}) 9. Bh4 {[%emt 0:00:28]} Bg7 {[%emt 0:01:00]} 10. O-O {[%emt 0:04:21]} Qd4 {[%emt 0:11:48]} 11. Nf3 {[%emt 0:00:34]} Qd6 {[%emt 0:02:04]} 12. Bxf6 {[%emt 0:07:19]} Bxf6 {[%emt 0:00:07]} 13. Ne4 {[%emt 0:00:05][%csl LRd6,LRf6]} Qd8 {[%emt 0:07:38]} 14. Nxf6+ {[%emt 0:05:06]} Qxf6 {[%emt 0:00:02]} 15. d4 {[%emt 0:01:23]} cxd4 {[%emt 0:04:40]} 16. Nxd4 {[%emt 0:02:15]} Bd7 {[%emt 0:06:06]} 17. c3 {[%emt 0:03:11]} Nc6 {[%emt 0:02:33]} 18. Nf3 {[%emt 0:04:54]} Qf4 {[%emt 0:07:14] Inhibits Qd6.} (18... Ne5 $5 {[%cal Re5c4]} 19. Bd5 Rd8 $11) 19. Qe2 {[%emt 0:00:56]} O-O {[%emt 0:12:17]} 20. Rad1 {[%emt 0:05:53]} Rfd8 {[%emt 0:00:34]} 21. Rfe1 {[%emt 0:01:27]} Be8 {[%emt 0:02:52]} 22. Bd3 {[%emt 0:01:15]} Rd7 {[%emt 0:10:08]} 23. Be4 {[%emt 0:06:50]} Rxd1 {[%emt 0:01:38]} 24. Rxd1 {[%emt 0:00:08]} Rd8 {[%emt 0:01:42] [#] ...Rxd1+ is the strong threat.} 25. Re1 {[%emt 0:01:30]} Rd6 {[%emt 0:04:00]} 26. g3 {[%emt 0:02:23]} Qf6 {[%emt 0:01:25]} 27. Nd2 {[%emt 0:00:48]} (27. h4 $14) 27... Na5 $11 {[%emt 0:06:06] The position is equal.} 28. Bg2 {[%emt 0:06:26] Strongly threatening Ne4.} Bb5 {[%emt 0:02:45]} 29. Qe3 {[%emt 0:06:52] And now Ne4 would win.} Qd8 {[%emt 0:01:27]} 30. Ne4 {[%emt 0:00:35]} Rd1 {[%emt 0:01:25] Hoping for ...Qd3.} 31. Bf3 {[%emt 0:04:27]} Rxe1+ {[%emt 0:01:15]} 32. Qxe1 {[%emt 0:00:08]} Qd3 {[%emt 0:00:49]} 33. Qd1 {[%emt 0:07:43]} Qxd1+ {[%emt 0:01:03]} 34. Bxd1 {[%emt 0:00:02][%mdl 4096] Endgame KBN-KBN} Nc4 {[%emt 0:01:30]} 35. b3 {[%emt 0:00:19]} Bc6 {[%emt 0:02:23]} 36. Bc2 {[%emt 0:01:36]} Ne5 {[%emt 0:00:31] Threatens to win with ...Nf3+.} 37. Nd2 {[%emt 0:01:40]} Nf3+ {[%emt 0:00:41]} 38. Nxf3 {[%emt 0:00:07]} Bxf3 {[%emt 0:00:01]} 39. Kf1 {[%emt 0:00:07]} f5 {[%emt 0:00:49]} 40. Ke1 {[%emt 0:00:00]} Kf7 {[%emt 0:00:00]} 41. Kd2 {[%emt 0:00:04]} e5 {[%emt 0:02:34]} 42. Ke3 {[%emt 0:00:08] Weighted Error Value: White=0.08 (flawless) /Black=0.04 (flawless)} 1/2-1/2

[Event "8th Svetozar Gligoric Cup 2022"]
[Site "Paracin"]
[Date "2022.06.02"]
[Round "3.5"]
[White "Miljkovic, Miroslav M"]
[Black "Bogosavljevic, Boban"]
[Result "0-1"]
[ECO "A41"]
[WhiteElo "2104"]
[BlackElo "2527"]
[Annotator "TA"]
[PlyCount "76"]
[EventDate "2022.05.31"]
[EventType "team-tourn"]
[EventCountry "SRB"]
[SourceTitle "playchess.com"]
[Source "ChessBase"]
[SourceQuality "1"]
[TimeControl "40/5400+30:900+30"]

{[%evp 9,76,24,43,4,13,0,3,0,0,0,7,4,25,-7,8,0,30,0,0,0,0,0,0,1,8,8,-11,-6,14,31,25,22,29,0,0,-16,-14,-113,-100,-89,-99,-223,-18,-45,0,-229,-216,-693,-725,-710,-693,-887,-884,-872,-860,-1750,-1810,-1545,-1604,-1088,-1064,-12823,-12286,-1289,-945,-941,-618,-932,-912]} 1. d4 {[%emt 0:00:05]} d6 {[%emt 0:01:57]} 2. c4 {[%emt 0:00:31]} e5 {[%emt 0:00:09]} 3. d5 {[%emt 0:00:31]} Be7 {[%emt 0:01:35]} 4. Nc3 {[%emt 0:00:21]} a5 {[%emt 0:00:26]} 5. e4 {[%emt 0:00:47]} Bg5 {[%emt 0:05:31]} 6. Bd3 {[%emt 0:03:22] A41: 1 d4 d6: Tartakower System and Modern Defence.} Bxc1 {[%emt 0:00:53]} 7. Qxc1 {[%emt 0:00:44]} Na6 {[%emt 0:00:16] [#]} 8. f4 $146 {[%emt 0:02:12] The position is equal.} ({Predecessor:} 8. Nge2 Nf6 9. O-O O-O 10. Bc2 Nd7 11. a3 Nb6 12. b3 h6 13. f4 exf4 14. Rxf4 {½-½ (44) Iotov,V (2569)-Popchev,M (2499) Albena 2010}) 8... Nc5 {[%emt 0:10:31]} 9. Bc2 {[%emt 0:00:49]} exf4 {[%emt 0:10:47]} 10. Qxf4 {[%emt 0:01:05]} Qf6 {[%emt 0:02:03]} 11. Qe3 {[%emt 0:00:53]} Nh6 {[%emt 0:03:15]} ({Don't do} 11... Bg4 12. h3 (12. Nf3 Qh6 $14) 12... Bh5 13. Kd2 $14) 12. h3 {[%emt 0:02:30] Prevents Ng4.} Qe5 {[%emt 0:06:14]} 13. g4 {[%emt 0:08:04][%cal Bg2g4,Bg4g5][%mdl 32] Inhibits Nf5.} f5 {[%emt 0:04:19]} 14. g5 {[%emt 0:07:12]} Nf7 {[%emt 0:06:57] White must now prevent ...0-0.} 15. Nf3 {[%emt 0:01:13]} Qg3+ {[%emt 0:02:35]} 16. Ke2 {[%emt 0:00:45][%cal Be1e2,Be2f2,Bf2g3][%mdl 32] Rag1 is the strong threat.} Qg2+ {[%emt 0:11:44]} 17. Qf2 {[%emt 0:00:45]} Qxf2+ {[%emt 0:00:06]} 18. Kxf2 {[%emt 0:00:08]} fxe4 {[%emt 0:05:56]} (18... O-O $5 {[%cal Rf5e4]}) 19. Nxe4 {[%emt 0:02:23]} O-O {[%emt 0:00:13]} 20. Kg3 {[%emt 0:00:32]} Bd7 {[%emt 0:03:29]} 21. Nxc5 {[%emt 0:06:50]} dxc5 {[%emt 0:00:16]} 22. Rae1 {[%emt 0:01:16]} Nd6 {[%emt 0:00:29]} 23. Re7 {[%emt 0:00:21]} (23. Nd2 $11) 23... Bf5 $17 {[%emt 0:00:23][%cal Bd7f5,Bf5e4,Be4f3][%mdl 32]} 24. Bd1 {[%emt 0:02:23]} Be4 {[%emt 0:02:34]} 25. Rxc7 {[%emt 0:01:58] [#]} (25. Re5 $17) 25... Nf5+ $2 {[%emt 0:00:48]} ({Inferior is} 25... Nxc4 26. Re1 Bxd5 27. Rxc5 $11) ({Black should try} 25... Rae8 $1 $19 {aiming for ...b6.} 26. Rf1 Bd3) 26. Kh2 $11 {[%emt 0:02:32]} Nd6 $2 {[%emt 0:06:02]} (26... Ne3 $15 27. Re1 Nxd1 28. Rxe4 Rxf3) 27. Kg3 $19 {[%emt 0:02:05] [#]} Rae8 $1 {[%emt 0:00:15] Hoping for ...Bxf3.} ({Weaker is} 27... Nxc4 28. Re1 Bxd5 29. Rxc5 $11) 28. Re1 $2 {[%emt 0:02:37]} (28. b3) 28... Bxf3 {[%emt 0:00:14][%mdl 64] Discovered Attack. Black is clearly winning.} 29. Rxe8 {[%emt 0:01:37]} Nxe8 {[%emt 0:00:06]} 30. Rxc5 {[%emt 0:00:29]} Bxd1 {[%emt 0:00:06]} 31. Rxa5 {[%emt 0:00:10]} Nd6 {[%emt 0:00:29][%cal Be8d6,Bd6e4,Be4g3][%mdl 32] And now ...Ne4+ would win.} 32. c5 {[%emt 0:00:38]} Ne4+ {[%emt 0:01:04]} 33. Kg2 {[%emt 0:00:27]} Rf2+ {[%emt 0:00:43]} 34. Kg1 {[%emt 0:00:06]} Bf3 {[%emt 0:00:40]} 35. Ra3 {[%emt 0:00:58]} Rg2+ {[%emt 0:00:14]} 36. Kf1 {[%emt 0:00:11]} Ng3+ {[%emt 0:00:24]} 37. Ke1 {[%emt 0:00:18]} Re2+ {[%emt 0:00:05]} 38. Kd1 {[%emt 0:00:05]} Re3+ {[%emt 0:00:06] Weighted Error Value: White=0.79/Black=0.19 (very precise)} 0-1

[Event "8th Svetozar Gligoric Cup 2022"]
[Site "Paracin"]
[Date "2022.06.02"]
[Round "3.7"]
[White "Rajic, Milovan"]
[Black "Zajic, Milan"]
[Result "0-1"]
[ECO "B06"]
[WhiteElo "1651"]
[BlackElo "2426"]
[Annotator "TA"]
[PlyCount "64"]
[EventDate "2022.05.31"]
[EventType "team-tourn"]
[EventCountry "SRB"]
[SourceTitle "playchess.com"]
[Source "ChessBase"]
[SourceQuality "1"]
[TimeControl "40/5400+30:900+30"]

{[%evp 9,64,4,1,2,19,-6,-3,-37,-22,-77,0,-39,-4,-76,-55,-72,-63,-124,-120,-129,-122,-117,-117,-118,-92,-105,-100,-114,-93,-142,-108,-117,-104,-127,-116,-143,-123,-131,-84,-94,-84,-140,-106,-114,-102,-112,-108,-120,-118,-139,-135,-160,-163,-280,-287,-299,-285]} 1. e4 {[%emt 0:00:03]} g6 {[%emt 0:00:19]} 2. d4 {[%emt 0:01:07]} Bg7 {[%emt 0:00:09]} 3. Be3 {[%emt 0:02:14]} c6 {[%emt 0:01:37]} 4. Bc4 {[%emt 0:04:01]} d5 {[%emt 0:00:21]} 5. exd5 {[%emt 0:00:33]} cxd5 {[%emt 0:00:06]} 6. Bb3 {[%emt 0:00:03] B06: Modern Defence.} Nc6 {[%emt 0:00:10]} 7. Nc3 {[%emt 0:01:32] [#]} e6 $146 {[%emt 0:00:51]} ({Predecessor:} 7... Nf6 8. h3 O-O 9. Nf3 Na5 10. O-O a6 11. Bf4 Bf5 12. Be5 Nxb3 13. axb3 Rc8 {1-0 (37) Ohrnberg,M-Haanpaa,J Turku 1997}) 8. Nge2 {[%emt 0:01:49] The position is equal.} Nge7 {[%emt 0:00:09]} 9. f3 {[%emt 0:03:10]} (9. Qd2 $11) 9... b6 {[%emt 0:01:29]} (9... Nf5 $17 10. Bf2 h5) 10. Qd2 {[%emt 0:03:00]} Ba6 {[%emt 0:01:19]} 11. Bh6 {[%emt 0:03:01]} (11. g4 $11 {remains equal.}) 11... Bxh6 $17 12. Qxh6 {[%emt 0:00:02]} Nf5 {[%emt 0:00:31][%csl LRd4,LRh6]} 13. Qd2 {[%emt 0:00:28] [#]} (13. Qf4 $15) 13... Ncxd4 $1 {[%emt 0:01:04][%mdl 512]} 14. O-O-O {[%emt 0:02:47]} (14. Nxd4 Qh4+) 14... Bxe2 {[%emt 0:01:58]} 15. Nxe2 {[%emt 0:00:17]} Nxb3+ {[%emt 0:00:43]} 16. axb3 {[%emt 0:00:15]} Qc7 {[%emt 0:00:26]} 17. Kb1 {[%emt 0:00:12]} O-O-O {[%emt 0:00:42]} 18. g3 {[%emt 0:02:24]} Kb8 {[%emt 0:00:16]} 19. f4 {[%emt 0:01:30]} (19. g4 $142 Ne7 20. Qh6) 19... Rc8 {[%emt 0:00:11][%cal Bd8c8,Bc8c7,Bc7d7][%mdl 32] Black is more active.} 20. Rc1 {[%emt 0:00:53]} Rhd8 {[%emt 0:00:07]} 21. Rhe1 {[%emt 0:02:27]} Qc5 {[%emt 0:00:47]} 22. Nc3 {[%emt 0:00:41]} Rc7 {[%emt 0:00:54]} 23. Qd3 {[%emt 0:01:42]} Rdc8 {[%emt 0:00:32]} (23... h5 $142 24. Nb5 Rcd7) 24. Nb5 {[%emt 0:01:40]} Rd7 {[%emt 0:01:04]} 25. Nc3 {[%emt 0:00:12]} ({Better is} 25. g4 Nd6 26. Nxd6 Qxd6 27. Qd4) 25... Ne7 {[%emt 0:00:35]} 26. Ne4 {[%emt 0:00:18]} Qa5 {[%emt 0:00:24]} 27. Nf6 {[%emt 0:01:31]} Rdc7 {[%emt 0:00:13][%cal Oc7c2] Strongly threatening ...Rxc2!} 28. c3 {[%emt 0:00:26]} h5 {[%emt 0:01:15]} 29. Nh7 {[%emt 0:02:09]} Nc6 {[%emt 0:00:44][%cal Od5d4]} 30. Ng5 {[%emt 0:00:25]} d4 {[%emt 0:01:09]} 31. Ne4 {[%emt 0:08:00]} (31. Qe2 $142) 31... dxc3 $19 {[%emt 0:00:20]} 32. bxc3 {[%emt 0:00:37]} Qa3 {[%emt 0:00:48] Weighted Error Value: White=0.30/Black=0.12 (very precise)} 0-1